fUSD/lending_fUSD_20260319
["ID","MTS","AMOUNT","RATE_DAILY","PERIOD"]
[408599007,1773919838656,-4571.69415937,0.0001,2]
[408599009,1773919838666,-3773.142982,0.0001,2]
[408599011,1773919838675,-379.26063826,0.0001,2]
[408599013,1773919838685,-746.55330102,0.0001,2]
[408599015,1773919838694,-821.41483277,0.0001,2]
[408599017,1773919838704,-842.73347003,0.0001,2]
[408599019,1773919838713,-439.52421232,0.0001,2]
[408599021,1773919838722,-664.14412882,0.0001,2]
[408599023,1773919838732,-664.14412882,0.0001,2]
[408599025,1773919838741,-664.14412882,0.0001,2]
[408599027,1773919838751,-9478.41325372,0.0001,2]
[408599029,1773919838761,-500.0,0.0001,2]
[408599031,1773919838770,-500.0,0.0001,2]
[408599032,1773919838779,-500.0,0.0001,2]
[408599033,1773919838789,-500.0,0.0001,2]
[408599034,1773919838798,-500.0,0.0001,2]
[408599035,1773919838808,-500.0,0.0001,2]
[408599036,1773919838819,-500.0,0.0001,2]
[408599037,1773919838828,-500.0,0.0001,2]
[408599038,1773919838837,-500.0,0.0001,2]
[408599039,1773919838847,-500.0,0.0001,2]
[408599040,1773919838856,-151.0,0.0001,2]
[408599041,1773919838869,-500.0,0.0001,2]
[408599042,1773919838878,-151.0,0.0001,2]
[408599043,1773919838888,-500.0,0.0001,2]
[408599044,1773919838896,-151.0,0.0001,2]
[408599045,1773919838910,-500.0,0.0001,2]
[408599046,1773919838919,-151.0,0.0001,2]
[408599047,1773919838928,-500.0,0.0001,2]
[408599048,1773919838940,-151.0,0.0001,2]
[408599049,1773919838950,-151.0,0.0001,2]
[408599050,1773919838960,-151.0,0.0001,2]
[408599051,1773919838969,-151.0,0.0001,2]
[408599052,1773919838981,-151.0,0.0001,2]
[408599053,1773919838990,-151.0,0.0001,2]
[408599054,1773919838999,-151.0,0.0001,2]
[408599055,1773919839009,-151.0,0.0001,2]
[408599056,1773919839018,-151.0,0.0001,2]
[408599057,1773919839027,-151.0,0.0001,2]
[408599058,1773919839037,-151.0,0.0001,2]
[408599059,1773919839046,-151.0,0.0001,2]
[408599060,1773919839055,-151.0,0.0001,2]
[408599061,1773919839065,-151.0,0.0001,2]
[408599062,1773919839075,-500.0,0.0001,2]
[408599063,1773919839084,-151.0,0.0001,2]
[408599064,1773919839093,-500.0,0.0001,2]
[408599065,1773919839103,-151.0,0.0001,2]
[408599066,1773919839113,-500.0,0.0001,2]
[408599067,1773919839123,-200.0,0.0001,2]
[408599068,1773919839133,-151.0,0.0001,2]
[408599069,1773919839143,-500.0,0.0001,2]
[408599070,1773919839153,-151.0,0.0001,2]
[408599071,1773919839163,-500.0,0.0001,2]
[408599072,1773919839172,-151.0,0.0001,2]
[408599073,1773919839181,-500.0,0.0001,2]
[408599074,1773919839190,-151.0,0.0001,2]
[408599075,1773919839199,-500.0,0.0001,2]
[408599076,1773919839209,-151.0,0.0001,2]
[408599077,1773919839218,-500.0,0.0001,2]
[408599078,1773919839228,-151.0,0.0001,2]
[408599079,1773919839238,-500.0,0.0001,2]
[408599080,1773919839248,-151.0,0.0001,2]
[408599081,1773919839257,-500.0,0.0001,2]
[408599082,1773919839267,-151.0,0.0001,2]
[408599083,1773919839276,-586.89232069,0.0001,2]
[408599084,1773919839288,-151.0,0.0001,2]
[408599085,1773919839297,-151.0,0.0001,2]
[408599086,1773919839307,-151.0,0.0001,2]
[408599087,1773919839317,-151.0,0.0001,2]
[408599088,1773919839327,-151.0,0.0001,2]
[408599089,1773919839337,-151.0,0.0001,2]
[408599090,1773919839346,-2631.93726829,0.0001,2]
[408599091,1773919839356,-754.12543512,0.0001,2]
[408599092,1773919839365,-260.82498329,0.0001,2]
[408599093,1773919839374,-2751.13382722,0.0001,2]
[408599094,1773919839383,-11890.18417091,0.0001,2]
[408599095,1773919839393,-1297.4577043,0.0001,2]
[408599096,1773919839402,-1297.4577043,0.0001,2]
[408599097,1773919839411,-367.85,0.00010046,2]
[408599098,1773919839421,-1565.79,0.00010054,2]
[408599099,1773919839430,-500.0,0.00010058,2]
[408599100,1773919839440,-500.70998659,0.00010067,2]
[408599101,1773919839450,-502.25774111,0.00010067,2]
[408599102,1773919839460,-500.31068947,0.00010067,2]
[408599103,1773919839469,-500.0,0.00010067,2]
[408599104,1773919839478,-500.0,0.00010067,2]
[408599105,1773919839488,-500.0,0.00010067,2]
[408599106,1773919839498,-500.0,0.00010067,2]
[408599107,1773919839507,-500.0,0.00010067,2]
[408599108,1773919839517,-5533.0,0.000101,3]
[408599109,1773919839526,-2351.0,0.00010175,2]
[408599110,1773919839536,-433.0,0.00010175,2]
[408599111,1773919839546,-587.0,0.00010175,2]
[408599112,1773919839556,-261.0,0.00010192,2]
[408599113,1773919839566,-5533.0,0.000102,5]
[408599114,1773919839576,-155.0,0.00010219,2]
[408599115,1773919839587,-2000.0,0.00010274,2]
[408599116,1773919839596,-500.0,0.00010274,2]
[408599117,1773919839606,-500.0,0.00010322,2]
[408599118,1773919839616,-500.0,0.00010322,2]
[408599119,1773919839625,-1565.79,0.00010328,2]
[408599120,1773919839635,-500.0,0.00010332,2]
[408599121,1773919839645,-151.0,0.00010363,2]
[408599122,1773919839654,-302.59303083,0.00010363,2]
[408599123,1773919839664,-231.472596,0.00010376,2]
[408599124,1773919839673,-10379.68,0.00010475,2]
[408599125,1773919839684,-3807.71,0.00010475,2]
[408599126,1773919839695,-9999.99,0.00010475,2]
[408599128,1773919839705,-367.85,0.00010502,2]
[408599129,1773919839714,-174.47964956,0.00010525,2]
[408599130,1773919839724,-200.0,0.00010548,2]
[408599131,1773919839734,-1600.0,0.00010588,2]
[408599132,1773919839744,-1565.79,0.00010602,2]
[408599133,1773919839754,-1000.0,0.00010603,2]
[408599134,1773919839765,-500.0,0.00010606,2]
[408599135,1773919839775,-1000.0,0.00010615,2]
[408599136,1773919839785,-1000.0,0.00010615,2]
[408599137,1773919839795,-232.99661061,0.00010615,2]
[408599138,1773919839805,-1000.0,0.00010615,2]
[408599139,1773919839815,-1000.0,0.00010615,2]
[408599140,1773919839825,-269.83423346,0.000107,2]
[408599141,1773919839835,-1033.77372293,0.000108,2]
[408599142,1773919839845,-503.88715955,0.0001087,2]
[408599143,1773919839854,-1565.79,0.00010876,2]
[408599144,1773919839866,-500.0,0.0001088,2]
[408599146,1773919839876,-2500.0,0.000109,3]
[408599147,1773919839886,-208.67945104,0.00010959,2]
[408599148,1773919839896,-185.19,0.00010959,2]
[408599149,1773919839907,-7836.06,0.00010959,2]
[408599150,1773919839917,-150.0,0.00010959,2]
[408599151,1773919839927,-150.0,0.00010959,2]
[408599152,1773919839938,-166.66,0.00010959,2]
[408599153,1773919839948,-151.0,0.00010959,2]
[408599154,1773919839957,-367.85,0.00010959,2]
[408599155,1773919839967,-500.0,0.00010959,2]
[408599157,1773919840149,-292.79892497,0.00010959,2]
[408599158,1773919840161,-500.0,0.00010959,2]
[408599159,1773919840171,-500.0,0.00010959,2]
[408599160,1773919840180,-500.0,0.00010959,2]
[408599161,1773919840190,-500.0,0.00010959,2]
[408599162,1773919840200,-3510.2501,0.00010996,2]
[408599163,1773919840209,-300.0,0.00011,2]
[408599164,1773919840219,-600.0,0.00011038,2]
[408599165,1773919840228,-166.66,0.00011068,2]
[408599166,1773919840238,-151.0,0.00011096,2]
[408599167,1773919840247,-200.0,0.00011096,2]
[408599168,1773919840257,-29593.69379669,0.00011099,2]
[408599169,1773919840266,-29593.69379667,0.00011099,2]
[408599170,1773919840277,-29593.69379667,0.00011099,2]
[408599171,1773919840286,-29593.69379667,0.00011099,2]
[408599172,1773919840296,-29593.69379667,0.00011099,2]
[408599173,1773919840305,-34272.90637945,0.00011099,2]
[408599174,1773919840315,-34272.90637938,0.00011099,2]
[408599175,1773919840324,-34272.90637938,0.00011099,2]
[408599176,1773919840334,-34272.90637938,0.00011099,2]
[408599177,1773919840344,-34272.90637938,0.00011099,2]
[408599178,1773919840354,-151.0,0.00011099,2]
[408599179,1773919840365,-714.35997018,0.00011111,2]
[408599180,1773919840374,-1565.79,0.0001115,2]
[408599181,1773919840384,-500.0,0.00011154,2]
[408599182,1773919840393,-1500.0,0.00011163,2]
[408599183,1773919840403,-1520.9482015,0.00011163,2]
[408599184,1773919840413,-1519.26830637,0.00011163,2]
[408599185,1773919840423,-1500.0,0.00011163,2]
[408599186,1773919840434,-166.66,0.00011178,2]
[408599187,1773919840443,-3292.0,0.00011192,2]
[408599188,1773919840453,-736.0,0.00011192,2]
[408599189,1773919840463,-823.0,0.00011192,2]
[408599190,1773919840473,-261.0,0.00011192,2]
[408599191,1773919840482,-163.68,0.00011233,2]
[408599192,1773919840491,-34272.90637938,0.00011263,2]
[408599193,1773919840501,-237.52,0.00011263,2]
[408599194,1773919840510,-29593.69379667,0.00011264,2]
[408599195,1773919840521,-166.66,0.00011288,2]
[408599196,1773919840530,-1235.08,0.000113,2]
[408599197,1773919840540,-2000.0,0.00011301,2]
[408599198,1773919840550,-166.66,0.00011397,2]
[408599199,1773919840559,-367.85,0.00011416,2]
[408599200,1773919840571,-1565.87451448,0.00011424,2]
[408599201,1773919840581,-500.0,0.00011428,2]
[408599202,1773919840591,-760.0,0.00011456,2]
[408599203,1773919840600,-250.0,0.00011505,2]
[408599204,1773919840610,-6194.75,0.00011507,2]
[408599206,1773919840620,-3172.99,0.00011507,2]
[408599207,1773919840630,-166.66,0.00011507,2]
[408599208,1773919840640,-1600.0,0.00011551,2]
[408599209,1773919840649,-151.0,0.00011551,2]
[408599210,1773919840659,-151.0,0.00011559,2]
[408599211,1773919840668,-291.887196,0.00011571,2]
[408599212,1773919840678,-500.0,0.00011575,2]
[408599213,1773919840687,-500.0,0.00011575,2]
[408599214,1773919840697,-500.0,0.00011575,2]
[408599215,1773919840707,-500.0,0.00011575,2]
[408599216,1773919840717,-500.0,0.00011575,2]
[408599217,1773919840726,-500.0,0.00011575,2]
[408599218,1773919840736,-500.0,0.00011575,2]
[408599219,1773919840745,-500.0,0.00011575,2]
[408599220,1773919840755,-500.0,0.00011575,2]
[408599221,1773919840765,-612.39,0.00011575,2]
[408599222,1773919840774,-500.0,0.00011575,2]
[408599223,1773919840784,-500.0,0.00011575,2]
[408599224,1773919840794,-500.0,0.00011575,2]
[408599225,1773919840803,-423.72,0.00011575,2]
[408599226,1773919840812,-500.0,0.00011575,2]
[408599227,1773919840823,-258.62957655,0.00011616,2]
[408599228,1773919840835,-200.0,0.00011644,2]
[408599229,1773919840844,-500.0,0.00011702,2]
[408599230,1773919840854,-2000.0,0.00011711,2]
[408599231,1773919840864,-2000.0,0.00011711,2]
[408599232,1773919840876,-224.617534,0.0001176,2]
[408599233,1773919840885,-246.864975,0.0001176,2]
[408599234,1773919840894,-238.535623,0.0001176,2]
[408599235,1773919840903,-9867.90050503,0.00011847,2]
[408599236,1773919841172,-8460.0,0.00011847,2]
[408599237,1773919841183,-15945.00587435,0.00011847,2]
[408599238,1773919841192,-29593.69379667,0.00011848,2]
[408599239,1773919841202,-367.85,0.00011872,2]
[408599240,1773919841211,-155.0,0.00011922,2]
[408599241,1773919841220,-500.0,0.00011976,2]
[408599242,1773919841231,-16236.79,0.00012055,2]
[408599243,1773919841240,-754.1254351,0.00012122,2]
[408599244,1773919841250,-200.0,0.00012192,2]
[408599245,1773919841259,-261.0,0.00012192,2]
[408599246,1773919841268,-1000.0,0.00012219,2]
[408599247,1773919841277,-500.0,0.0001225,2]
[408599248,1773919841286,-193.60696256,0.00012256,2]
[408599249,1773919841296,-2500.0,0.00012258,2]
[408599250,1773919841305,-2000.0,0.00012258,2]
[408599251,1773919841315,-1000.0,0.00012272,2]
[408599252,1773919841324,-1000.0,0.00012276,2]
[408599253,1773919841334,-1000.0,0.00012283,2]
[408599254,1773919841346,-600.0,0.00012293,2]
[408599255,1773919841358,-350.0,0.00012297,2]
[408599256,1773919841368,-1000.0,0.00012306,2]
[408599257,1773919841379,-150.0,0.00012308,2]
[408599258,1773919841390,-1252.0,0.00012311,2]
[408599259,1773919841399,-4609.0,0.00012312,2]
[408599260,1773919841409,-1152.0,0.00012312,2]
[408599261,1773919841418,-150.0,0.00012316,2]
[408599262,1773919841427,-1000.0,0.00012324,2]
[408599263,1773919841437,-150.0,0.00012324,2]
[408599264,1773919841447,-1000.0,0.00012324,2]
[408599265,1773919841456,-2000.0,0.00012329,2]
[408599266,1773919841466,-367.85,0.00012329,2]
[408599267,1773919841476,-1000.0,0.0001233,2]
[408599268,1773919841486,-1000.0,0.00012343,2]
[408599269,1773919841495,-350.0,0.00012349,2]
[408599270,1773919841504,-1000.0,0.00012355,2]
[408599271,1773919841513,-1047.24314573,0.00012366,2]
[408599272,1773919841523,-150.0,0.00012369,2]
[408599273,1773919841532,-1000.0,0.0001237,2]
[408599274,1773919841541,-150.0,0.00012373,2]
[408599275,1773919841550,-150.0,0.00012403,2]
[408599276,1773919841559,-150.0,0.00012407,2]
[408599277,1773919841569,-120460.63478559,0.0001241,2]
[408599278,1773919841601,-338.0,0.0001,2]
[408599279,1773919841610,-97.68171857,0.0001241,2]
[408599280,1773919841624,-4833.80227768,0.0001241,2]
[408599281,1773919841661,-637.50353872,0.0001241,2]
[408599282,1773919841673,-9953.8234575,0.0001241,2]
[408599283,1773919841885,-338.0,0.0001,2]
[408599284,1773919841895,-338.67985043,0.0001,2]
[408599285,1773919841905,-759.18014957,0.0001241,2]
[408599286,1773919841919,-6544.3308598,0.0001241,2]
[408599287,1773919841963,-219.76210616,0.00010959,2]
[408599288,1773919841972,-2131.97605755,0.0001241,2]
[408599289,1773919843090,-8755.5375514,0.000109,2]
[408599290,1773919843100,-10244.88105643,0.0001241,2]
[408599291,1773919843171,-12.88274724,0.0001241,2]
[408599292,1773919843261,-118.82293919,0.0001241,2]
[408599297,1773919845831,-8755.53755138,0.000109,2]
[408599298,1773919845841,-10583.14512974,0.0001241,2]
[408599299,1773919846234,-3656.2744102,0.0001241,2]
[408599302,1773919920105,1100.72513556,8.314e-05,2]
[408599303,1773919920132,10000.01,8.314e-05,2]
[408599304,1773919920160,10000.01,8.314e-05,2]
[408599305,1773919920185,10000.01,8.314e-05,2]
[408599306,1773919920209,10000.01,8.314e-05,2]
[408599307,1773919920232,10000.01,8.314e-05,2]
[408599308,1773919920256,10000.01,8.314e-05,2]
[408599310,1773919929612,-4457.011447,7.945e-05,2]
[408599311,1773919966363,-1085.987106,7.945e-05,2]
[408599312,1773919966388,-1875564.012894,8.314e-05,2]
[408599313,1773920106417,187.0,8.314e-05,3]
[408599314,1773920275869,2864.48,7.652e-05,2]
[408599315,1773920318238,1600.0,7.652e-05,2]
[408599316,1773920319797,210.7,7.619e-05,2]
[408599317,1773920327723,5324.83,7.595e-05,2]
[408599318,1773920327746,5231.35,7.595e-05,2]
[408599319,1773920348180,1743.372946,7.945e-05,2]
[408599320,1773920534098,500.0,7.864e-05,2]
[408599321,1773920603744,9500.01,7.671e-05,2]
[408599322,1773920603771,10000.01,7.671e-05,2]
[408599323,1773920603798,10000.01,7.671e-05,2]
[408599324,1773920671899,1700.0,9e-05,3]
[408599325,1773920672917,500.0,7.411e-05,2]
[408599326,1773920831723,1800.0,9e-05,3]
[408599327,1773920835541,-300.0,7.669e-05,2]
[408599328,1773920850481,-1178.0,7.67e-05,2]
[408599329,1773920850515,-300.0,7.67e-05,2]
[408599330,1773920850550,-1200.0,7.67e-05,2]
[408599331,1773920850581,-300.0,7.67e-05,2]
[408599332,1773920865668,-250.0,7.671e-05,2]
[408599333,1773920892623,300.0,7.67e-05,2]
[408599334,1773920953111,-5550.817804,7.671e-05,2]
[408599335,1773921001184,300.0,7.67e-05,2]
[408599336,1773921001214,1200.0,7.67e-05,2]
[408599337,1773921005501,215.0,7.671e-05,2]
[408599340,1773921032273,-11678.112196,7.671e-05,2]
[408599341,1773921032283,-250.0,7.736e-05,2]
[408599342,1773921032299,-200.0,7.8e-05,2]
[408599343,1773921032311,-12834.233394,7.945e-05,2]
[408599344,1773921032321,-900.0,8e-05,2]
[408599345,1773921032330,-1065.50192028,8.077e-05,2]
[408599346,1773921032340,-278.91348125,8.077e-05,2]
[408599347,1773921032349,-500.0,8.077e-05,2]
[408599348,1773921032359,-500.0,8.077e-05,2]
[408599349,1773921032369,-459.04322958,8.077e-05,2]
[408599350,1773921032378,-500.0,8.077e-05,2]
[408599353,1773921032387,-500.0,8.077e-05,2]
[408599356,1773921032396,-500.0,8.077e-05,2]
[408599358,1773921032405,-500.0,8.077e-05,2]
[408599360,1773921032414,-500.0,8.077e-05,2]
[408599361,1773921032423,-500.0,8.077e-05,2]
[408599363,1773921032433,-500.0,8.077e-05,2]
[408599365,1773921032442,-526.84677201,8.077e-05,2]
[408599367,1773921032451,-500.0,8.077e-05,2]
[408599369,1773921032460,-500.0,8.077e-05,2]
[408599371,1773921032469,-500.0,8.077e-05,2]
[408599373,1773921032478,-526.84677201,8.077e-05,2]
[408599374,1773921032487,-178.97673708,8.077e-05,2]
[408599375,1773921032496,-307.77077871,8.077e-05,2]
[408599376,1773921032506,-500.0,8.077e-05,2]
[408599377,1773921032516,-526.84677201,8.077e-05,2]
[408599378,1773921032525,-500.0,8.077e-05,2]
[408599379,1773921032534,-500.0,8.077e-05,2]
[408599380,1773921032544,-216.2817908,8.077e-05,2]
[408599381,1773921032553,-526.84677201,8.077e-05,2]
[408599382,1773921032563,-500.0,8.077e-05,2]
[408599383,1773921032572,-526.84677201,8.077e-05,2]
[408599384,1773921032582,-372.47788875,8.077e-05,2]
[408599385,1773921032591,-444.78820382,8.077e-05,2]
[408599386,1773921032600,-500.0,8.077e-05,2]
[408599387,1773921032610,-526.84677201,8.077e-05,2]
[408599388,1773921032619,-500.0,8.077e-05,2]
[408599389,1773921032628,-526.84677201,8.077e-05,2]
[408599390,1773921032637,-500.0,8.077e-05,2]
[408599391,1773921032646,-526.84677201,8.077e-05,2]
[408599392,1773921032655,-526.84677201,8.077e-05,2]
[408599393,1773921032665,-526.84677201,8.077e-05,2]
[408599394,1773921032674,-500.0,8.077e-05,2]
[408599395,1773921032683,-526.84677201,8.077e-05,2]
[408599396,1773921032693,-526.84677201,8.077e-05,2]
[408599397,1773921032702,-526.84677201,8.077e-05,2]
[408599398,1773921032711,-526.84677201,8.077e-05,2]
[408599399,1773921032721,-526.84677201,8.077e-05,2]
[408599400,1773921032730,-526.84677201,8.077e-05,2]
[408599401,1773921032740,-526.84677201,8.077e-05,2]
[408599402,1773921032749,-526.84677201,8.077e-05,2]
[408599403,1773921032758,-526.84677201,8.077e-05,2]
[408599404,1773921032768,-526.84677201,8.077e-05,2]
[408599405,1773921032777,-526.84677201,8.077e-05,2]
[408599406,1773921032787,-526.84677201,8.077e-05,2]
[408599407,1773921032796,-526.84677201,8.077e-05,2]
[408599408,1773921032805,-526.84677201,8.077e-05,2]
[408599409,1773921032815,-526.84677201,8.077e-05,2]
[408599410,1773921032824,-526.84677201,8.077e-05,2]
[408599411,1773921032834,-526.84677201,8.077e-05,2]
[408599412,1773921032843,-526.84677201,8.077e-05,2]
[408599413,1773921032857,-526.84677201,8.077e-05,2]
[408599414,1773921032867,-526.84677201,8.077e-05,2]
[408599415,1773921032876,-526.84677201,8.077e-05,2]
[408599416,1773921032886,-526.84677201,8.077e-05,2]
[408599417,1773921032895,-526.84677201,8.077e-05,2]
[408599418,1773921032905,-526.84677201,8.077e-05,2]
[408599419,1773921032914,-526.84677201,8.077e-05,2]
[408599420,1773921032923,-526.84677201,8.077e-05,2]
[408599421,1773921032933,-526.84677201,8.077e-05,2]
[408599422,1773921032942,-526.84677201,8.077e-05,2]
[408599423,1773921032952,-526.84677201,8.077e-05,2]
[408599424,1773921032962,-526.84677201,8.077e-05,2]
[408599425,1773921032971,-526.84677201,8.077e-05,2]
[408599426,1773921032981,-526.84677201,8.077e-05,2]
[408599427,1773921032991,-526.84677201,8.077e-05,2]
[408599428,1773921033000,-526.84677201,8.077e-05,2]
[408599429,1773921033010,-526.84677201,8.077e-05,2]
[408599430,1773921033020,-526.84677201,8.077e-05,2]
[408599431,1773921033029,-526.84677201,8.077e-05,2]
[408599432,1773921033038,-526.84677201,8.077e-05,2]
[408599433,1773921033048,-526.84677201,8.077e-05,2]
[408599434,1773921033059,-526.84677201,8.077e-05,2]
[408599435,1773921033069,-500.0,8.077e-05,2]
[408599436,1773921033079,-483.44806507,8.077e-05,2]
[408599437,1773921033089,-500.0,8.077e-05,2]
[408599438,1773921033098,-1465.39291906,8.077e-05,2]
[408599439,1773921033108,-1465.39291906,8.077e-05,2]
[408599440,1773921033117,-1465.39291906,8.077e-05,2]
[408599441,1773921033127,-1465.39291906,8.077e-05,2]
[408599442,1773921033136,-1465.39291906,8.077e-05,2]
[408599443,1773921033145,-1465.39291906,8.077e-05,2]
[408599444,1773921033155,-1465.39291906,8.077e-05,2]
[408599445,1773921033165,-1465.39291906,8.077e-05,2]
[408599446,1773921033175,-1465.39291906,8.077e-05,2]
[408599447,1773921033184,-1465.39291906,8.077e-05,2]
[408599448,1773921033197,-1465.39291906,8.077e-05,2]
[408599449,1773921033206,-1465.39291906,8.077e-05,2]
[408599450,1773921033216,-1465.39291906,8.077e-05,2]
[408599451,1773921033225,-1465.39291906,8.077e-05,2]
[408599452,1773921033238,-1465.39291906,8.077e-05,2]
[408599453,1773921033249,-1465.39291906,8.077e-05,2]
[408599454,1773921033258,-1465.39291906,8.077e-05,2]
[408599455,1773921033268,-1465.39291906,8.077e-05,2]
[408599456,1773921033277,-1465.39291906,8.077e-05,2]
[408599457,1773921033287,-1465.39291906,8.077e-05,2]
[408599458,1773921033297,-1465.39291906,8.077e-05,2]
[408599459,1773921033306,-1465.39291906,8.077e-05,2]
[408599460,1773921033315,-1465.39291906,8.077e-05,2]
[408599461,1773921033324,-1465.39291906,8.077e-05,2]
[408599462,1773921033334,-1465.39291906,8.077e-05,2]
[408599463,1773921033343,-1465.39291906,8.077e-05,2]
[408599464,1773921033352,-1465.39291906,8.077e-05,2]
[408599465,1773921033363,-1465.39291906,8.077e-05,2]
[408599466,1773921033373,-1465.39291906,8.077e-05,2]
[408599467,1773921033382,-1465.39291906,8.077e-05,2]
[408599468,1773921033392,-1465.39291906,8.077e-05,2]
[408599469,1773921033401,-1465.39291906,8.077e-05,2]
[408599470,1773921033410,-1465.39291906,8.077e-05,2]
[408599471,1773921033420,-1465.39291906,8.077e-05,2]
[408599472,1773921033429,-1465.39291906,8.077e-05,2]
[408599473,1773921033438,-1465.39291906,8.077e-05,2]
[408599474,1773921033447,-1465.39291906,8.077e-05,2]
[408599475,1773921033457,-1465.39291906,8.077e-05,2]
[408599476,1773921033466,-260780.57926838,8.078e-05,2]
[408599477,1773921038168,-1738.54203575,8.078e-05,2]
[408599478,1773921038180,-3368.20913972,8.078e-05,2]
[408599479,1773921038194,-41832.56066174,8.078e-05,2]
[408599480,1773921038223,-5559.03372,8.078e-05,2]
[408599481,1773921038234,-74159.01733107,8.078e-05,2]
[408599482,1773921038248,-1449.3393889,8.078e-05,2]
[408599570,1773921040265,-3451.94947151,8.078e-05,2]
[408599571,1773921040276,-5542.998553,8.078e-05,2]
[408599572,1773921040372,-413.34109995,8.078e-05,2]
[408599573,1773921040686,-8821.74899886,8.078e-05,2]
[408599574,1773921040697,-8947.21879473,8.078e-05,2]
[408599575,1773921040708,-8943.78386462,8.078e-05,2]
[408599576,1773921040720,-9077.54866152,8.078e-05,2]
[408599577,1773921040733,-288.8481317,8.078e-05,2]
[408599583,1773921043205,-87633.70251612,8.078e-05,2]
[408599584,1773921043260,-23624.88474738,8.078e-05,2]
[408599585,1773921043271,-610.77887769,8.078e-05,2]
[408599590,1773921046142,-10683.1,8.078e-05,2]
[408599591,1773921046154,-2370.0904925,8.078e-05,2]
[408599592,1773921046460,-513.45992186,8.078e-05,2]
[408599593,1773921046471,-1136.82271602,8.078e-05,2]
[408599594,1773921049288,-8861.77883809,8.078e-05,2]
[408599595,1773921050080,-10000.01,8.078e-05,2]
[408599596,1773921050208,-10000.01,8.078e-05,2]
[408599597,1773921050553,-10000.01,8.078e-05,2]
[408599598,1773921050709,-10000.01,8.078e-05,2]
[408599599,1773921050815,-10000.01,8.078e-05,2]
[408599600,1773921050937,-10000.01,8.078e-05,2]
[408599601,1773921051049,-10000.01,8.078e-05,2]
[408599602,1773921051160,-10000.01,8.078e-05,2]
[408599603,1773921051277,-10000.01,8.078e-05,2]
[408599604,1773921058660,-10000.01,8.078e-05,2]
[408599605,1773921058674,-10000.01,8.078e-05,2]
[408599606,1773921058703,-10000.01,8.078e-05,2]
[408599607,1773921058719,-10000.01,8.078e-05,2]
[408599608,1773921058734,-6193.91616889,8.078e-05,2]
[408599609,1773921061132,300.0,8.077e-05,2]
[408599610,1773921070424,-150.0,8.167e-05,2]
[408599611,1773921084468,9700.01,8.068e-05,2]
[408599612,1773921084489,10000.01,8.068e-05,2]
[408599613,1773921084511,10000.01,8.068e-05,2]
[408599614,1773921084532,10000.01,8.068e-05,2]
[408599615,1773921084552,3500.01,8.068e-05,2]
[408599616,1773921089080,-6500.0,8.168e-05,2]
[408599617,1773921089189,-10000.01,8.168e-05,2]
[408599618,1773921089631,-10000.01,8.168e-05,2]
[408599619,1773921089644,-10000.01,8.168e-05,2]
[408599620,1773921089658,-10000.01,8.168e-05,2]
[408599621,1773921091636,-10000.01,8.168e-05,2]
[408599622,1773921091733,-10000.01,8.168e-05,2]
[408599623,1773921097668,-10000.01,8.168e-05,2]
[408599624,1773921097760,-10000.01,8.168e-05,2]
[408599625,1773921097870,-10000.01,8.168e-05,2]
[408599626,1773921098004,-10000.01,8.168e-05,2]
[408599627,1773921098172,-1098.52949995,8.168e-05,2]
[408599628,1773921330900,-150.0,7.844e-05,2]
[408599629,1773921330928,-300.0,7.844e-05,2]
[408599630,1773921330955,-300.0,7.844e-05,2]
[408599631,1773921330986,-300.0,7.844e-05,2]
[408599632,1773921331014,-1200.0,7.844e-05,2]
[408599633,1773921361260,300.0,7.844e-05,2]
[408599634,1773921379912,5200.01,7.759e-05,2]
[408599635,1773921379933,326.59,7.759e-05,2]
[408599636,1773921422764,150.0,7.844e-05,2]
[408599637,1773921427959,300.0,7.844e-05,2]
[408599638,1773921481537,300.0,7.844e-05,2]
[408599639,1773921509070,7412.35,7.719e-05,2]